bitfinex/quotes_SOLUSD_20250425
["timestamp","ask_amount","ask_price","bid_price","bid_amount"]
[1745547541855,11.00917308,152.22,152.19,6.57073395]
[1745547543347,11.00917308,152.2,152.17,6.57159755]
[1745547543547,11.00917308,152.19,152.17,6.57159755]
[1745547543855,26.14216157,152.22,152.17,6.57159755]
[1745547543856,11.00917308,152.21,152.17,17.58077063]
[1745547544555,11.00917308,152.22,152.18,11.00917308]
[1745547544758,14.2,152.22,152.19,11.00917308]
[1745547545547,14.2,152.22,152.2,6.57030223]
[1745547546140,14.2,152.22,152.2,17.57947531]
[1745547546466,14.2,152.22,152.2,6.57030223]
[1745547546765,14.2,152.22,152.2,17.57947531]
[1745547547151,14.2,152.22,152.2,6.57030223]
[1745547547664,14.2,152.22,152.2,11.00917308]
[1745547548179,82.7,152.25,152.17,16.42899388]
[1745547548180,82.7,152.25,152.21,11.00917308]
[1745547548356,82.7,152.31,152.24,11.00917308]
[1745547548540,82.7,152.31,152.29,11.00917308]
[1745547548735,14.2,152.32,152.29,11.00917308]
[1745547549051,11.00917308,152.31,152.23,26.0]
[1745547549262,11.00917308,152.31,152.27,11.00917308]
[1745547549644,96.9,152.32,152.28,17.57602361]
[1745547549861,107.90917308,152.32,152.28,6.56685053]
[1745547550063,11.00917308,152.31,152.28,6.56685053]
[1745547550267,11.00917308,152.31,152.27,6.56716291]
[1745547551166,11.00917308,152.28,152.21,16.42430498]
[1745547551343,82.7,152.3,152.23,11.00917308]
[1745547551540,11.00917308,152.28,152.24,11.00917308]
[1745547551863,11.00917308,152.29,152.25,6.56814449]
[1745547552674,11.00917308,152.29,152.25,17.57731757]
[1745547553158,11.00917308,152.29,152.25,6.56814449]
[1745547553863,11.00917308,152.28,152.21,22.99417555]
[1745547554070,11.00917308,152.28,152.24,11.00917308]
[1745547554251,11.00917308,152.29,152.25,11.00917308]
[1745547554562,93.70917308,152.3,152.25,11.00917308]
[1745547555258,11.00917308,152.29,152.25,11.00917308]
[1745547555572,82.7,152.3,152.25,11.00917308]
[1745547555775,93.70917308,152.3,152.25,11.00917308]
[1745547556174,11.00917308,152.29,152.26,6.56771312]
[1745547556353,82.7,152.3,152.26,6.56771312]
[1745547556549,11.00917308,152.28,152.21,16.42430498]
[1745547556750,82.7,152.3,152.23,11.00917308]
[1745547556958,11.00917308,152.28,152.22,6.56943896]
[1745547557165,11.00917308,152.28,152.24,11.00917308]
[1745547558261,11.00917308,152.25,152.21,11.00917308]
[1745547558962,25.20917308,152.26,152.22,11.00917308]
[1745547559279,25.20917308,152.26,152.21,11.00917308]
[1745547559576,11.00917308,152.25,152.21,11.00917308]
[1745547560280,14.2,152.26,152.2,17.57947531]
[1745547560576,11.00917308,152.25,152.21,11.00917308]
[1745547560776,25.20917308,152.26,152.21,11.00917308]
[1745547561282,11.00917308,152.25,152.21,11.00917308]
[1745547562166,11.00917308,152.25,152.22,6.56943896]
[1745547562368,25.20917308,152.26,152.22,17.57861204]
[1745547562552,82.7,152.29,152.25,11.00917308]
[1745547562746,82.7,152.31,152.28,11.00917308]
[1745547562947,82.7,152.31,152.27,11.00917308]
[1745547563358,82.7,152.31,152.28,11.00917308]
[1745547564359,82.7,152.31,152.28,6.56684958]
[1745547564663,93.70917308,152.31,152.28,6.56684958]
[1745547566067,82.7,152.31,152.28,6.56684958]
[1745547566472,82.7,152.31,152.28,17.57602266]
[1745547567382,82.7,152.31,152.25,6.56814449]
[1745547567583,93.70917308,152.31,152.27,11.00917308]
[1745547568661,93.70917308,152.31,152.28,6.56685053]
[1745547569180,82.7,152.31,152.28,6.56685053]
[1745547569480,93.70917308,152.31,152.28,6.56685053]
[1745547570869,82.7,152.31,152.28,6.56685053]
[1745547571073,93.70917308,152.31,152.28,6.56685053]
[1745547571687,82.7,152.31,152.28,17.57602361]
[1745547572487,93.70917308,152.31,152.28,6.56685053]
[1745547573689,82.7,152.31,152.28,17.57602361]
[1745547573883,93.70917308,152.31,152.28,6.56685053]
[1745547574985,82.7,152.31,152.28,17.57602361]
[1745547575489,93.70917308,152.31,152.28,6.56685053]
[1745547576474,93.70917308,152.31,152.27,17.57632027]
[1745547577291,11.00917308,152.28,152.23,11.00917308]
[1745547577487,11.00917308,152.27,152.23,11.00917308]
[1745547578273,11.00917308,152.27,152.23,17.57793375]
[1745547578594,11.00917308,152.28,152.24,11.00917308]
[1745547579293,93.70917308,152.3,152.25,11.00917308]
[1745547579505,82.7,152.3,152.26,11.00917308]
[1745547580112,93.70917308,152.3,152.26,11.00917308]
[1745547580595,93.70917308,152.3,152.26,17.57654434]
[1745547581198,82.7,152.3,152.27,11.00917308]
[1745547581576,93.70917308,152.3,152.26,17.57654434]
[1745547584303,93.70917308,152.3,152.24,17.57733286]
[1745547584304,11.00917308,152.28,152.24,17.57733286]
[1745547584798,11.00917308,152.27,152.24,6.56815978]
[1745547585502,11.00917308,152.26,152.21,11.00917308]
[1745547585888,25.50917308,152.26,152.21,17.57904365]
[1745547586190,25.50917308,152.26,152.22,11.00917308]
[1745547587019,25.50917308,152.26,152.22,17.57842086]
[1745547587589,14.5,152.26,152.22,6.56924778]
[1745547587802,11.00917308,152.25,152.22,6.56924778]
[1745547588009,11.00917308,152.25,152.21,17.57890507]
[1745547589510,11.00917308,152.25,152.2,6.57030223]
[1745547589711,11.00917308,152.25,152.21,11.00917308]
[1745547590809,11.00917308,152.23,152.19,6.60063995]
[1745547591018,11.00917308,152.21,152.19,0.03]
[1745547591214,11.00917308,152.2,152.19,0.03]
[1745547591388,21.57480294,152.2,152.19,0.03]
[1745547592213,104.41696451,152.2,152.19,0.03]
[1745547592434,48.32801337,152.2,152.19,0.03]
[1745547593289,52.31313858,152.2,152.19,0.03]
[1745547594305,33.66348972,152.2,152.19,0.03]
[1745547595495,51.55992815,152.2,152.19,0.03]
[1745547595891,25.55992815,152.2,152.19,0.03]
[1745547596300,14.5,152.2,152.19,0.03]
[1745547596734,25.55992815,152.2,152.19,0.03]
[1745547597099,44.35173858,152.2,152.19,0.03]
[1745547597602,25.48208972,152.2,152.19,0.03]
[1745547598803,25.33992815,152.2,152.19,0.03]
[1745547600709,14.28,152.2,152.19,0.03]
[1745547600909,25.33992815,152.2,152.19,0.03]
[1745547602928,51.48208972,152.2,152.19,0.03]
[1745547603129,25.48208972,152.2,152.19,0.03]
[1745547603734,40.42216157,152.2,152.19,0.03]
[1745547604036,51.33992815,152.2,152.19,0.03]
[1745547606137,212.9123,152.24,152.19,0.03]
[1745547606337,212.9123,152.24,152.19,11.08992815]
[1745547606338,25.33992815,152.23,152.19,11.08992815]
[1745547606523,51.33992815,152.23,152.19,0.03]
[1745547606730,11.05992815,152.22,152.19,0.03]
[1745547607605,11.05992815,152.21,152.19,0.03]
[1745547609318,11.05992815,152.2,152.19,0.03]
[1745547609507,11.05992815,152.21,152.19,0.03]
[1745547611237,11.05992815,152.2,152.19,0.03]
[1745547612257,37.05992815,152.2,152.19,0.03]
[1745547612422,0.14216157,152.19,152.16,0.03]
[1745547612620,37.20208972,152.17,152.16,0.03]
[1745547612833,51.48208972,152.17,152.16,0.03]
[1745547613218,62.54201787,152.17,152.16,0.03]
[1745547613421,56.80266673,152.17,152.16,0.03]
[1745547613719,38.15301787,152.17,152.16,0.03]
[1745547614123,26.0,152.14,152.12,0.9402451]
[1745547614314,11.05992815,152.13,152.12,0.9402451]
[1745547614732,11.20208972,152.13,152.12,0.9402451]
[1745547615317,11.05992815,152.13,152.12,0.9402451]
[1745547619337,96.98,152.17,152.12,0.9402451]
[1745547619642,11.05992815,152.15,152.12,0.9402451]
[1745547619939,11.05992815,152.14,152.12,0.9402451]
[1745547622046,11.05992815,152.14,152.12,7.51397666]
[1745547622248,11.05992815,152.14,152.12,0.9402451]
[1745547622733,11.05992815,152.15,152.12,7.51390043]
[1745547623031,11.05992815,152.15,152.12,0.9402451]
[1745547623348,122.98,152.17,152.12,0.9402451]
[1745547623349,11.05992815,152.13,152.12,0.9402451]
[1745547624129,82.7,152.15,152.12,0.9402451]
[1745547624638,11.05992815,152.13,152.12,0.9402451]
[1745547624955,82.7,152.15,152.12,0.9402451]
[1745547625258,11.05992815,152.14,152.12,0.9402451]
[1745547625957,11.05992815,152.13,152.12,0.9402451]
[1745547628772,11.05992815,152.14,152.12,0.9402451]
[1745547628937,93.75992815,152.15,152.12,0.9402451]
[1745547629267,11.05992815,152.14,152.12,0.9402451]
[1745547629441,82.7,152.15,152.12,0.9402451]
[1745547629640,93.75992815,152.15,152.12,0.9402451]
[1745547629866,11.05992815,152.13,152.12,0.9402451]
[1745547630444,11.20208972,152.13,152.12,0.9402451]
[1745547632644,11.05992815,152.13,152.12,0.9402451]
[1745547633260,7.08124308,152.13,152.12,0.9402451]
[1745547633661,21.18124308,152.13,152.12,0.9402451]
[1745547634676,21.32340465,152.13,152.12,0.9402451]
[1745547636166,21.18124308,152.13,152.12,0.9402451]
[1745547636367,14.1,152.13,152.12,0.9402451]
[1745547636562,34.51501043,152.13,152.12,0.9402451]
[1745547636767,32.16436157,152.11,152.1,0.03]
[1745547636954,39.24560465,152.11,152.1,0.03]
[1745547638067,33.22340465,152.11,152.1,0.03]
[1745547638458,7.08124308,152.11,152.1,0.03]
[1745547638660,41.86536157,152.13,152.1,0.03]
[1745547638661,82.7,152.12,152.1,0.03]
[1745547639268,14.1,152.13,152.1,11.09146273]
[1745547639484,14.1,152.13,152.1,0.03]
[1745547640385,14.1,152.13,152.1,11.09146273]
[1745547640679,14.1,152.13,152.11,11.06146273]
[1745547641090,14.1,152.15,152.12,11.06146273]
[1745547641373,14.1,152.15,152.11,11.06146273]
[1745547641874,14.1,152.15,152.12,11.06146273]
[1745547642780,14.1,152.15,152.13,11.06146273]
[1745547642983,14.1,152.15,152.14,11.06146273]
[1745547643375,14.1,152.19,152.14,11.06146273]
[1745547643594,14.1,152.19,152.16,11.06146273]
[1745547643895,14.1,152.19,152.17,11.06146273]
[1745547644069,14.1,152.19,152.16,11.06146273]
[1745547644795,14.1,152.19,152.12,23.00800928]
[1745547644796,14.1,152.19,152.18,11.06146273]
[1745547645701,107.92446273,152.23,152.18,11.06146273]
[1745547645897,11.06146273,152.22,152.17,17.63266568]
[1745547646880,11.06146273,152.21,152.17,17.63266568]
[1745547647094,11.06146273,152.22,152.18,11.06146273]
[1745547647705,107.92446273,152.23,152.19,11.06146273]
[1745547647907,14.163,152.23,152.19,11.06146273]
[1745547648308,14.163,152.23,152.2,11.06146273]
[1745547648506,14.163,152.23,152.21,11.06146273]
[1745547648686,14.163,152.23,152.2,11.06146273]
[1745547649001,14.163,152.23,152.2,6.56991657]
[1745547649303,14.163,152.23,152.18,19.20693135]
[1745547649507,11.06146273,152.22,152.18,19.20693135]
[1745547650105,11.06146273,152.22,152.18,17.63253135]
[1745547651412,14.163,152.23,152.2,11.06146273]
[1745547651917,14.163,152.23,152.19,11.06146273]
[1745547652092,25.22446273,152.23,152.18,17.63253135]
[1745547652995,11.06146273,152.21,152.18,6.57106862]
[1745547653391,11.06146273,152.21,152.14,1.6106]
[1745547653392,11.06146273,152.2,152.15,11.06146273]
[1745547653589,11.06146273,152.16,152.12,17.63522028]
[1745547653783,11.06146273,152.16,152.12,6.57375755]
[1745547654006,11.06146273,152.15,152.12,6.57375755]
[1745547655195,11.06146273,152.16,152.12,6.57375755]
[1745547655618,14.08,152.17,152.12,17.63522028]
[1745547655786,14.08,152.17,152.14,11.06146273]
[1745547655987,25.14146273,152.17,152.12,6.57375755]
[1745547656202,107.68146273,152.19,152.15,11.06146273]
[1745547656387,11.06146273,152.18,152.14,11.06146273]
[1745547656588,11.06146273,152.16,152.12,6.57375755]
[1745547657209,11.06146273,152.16,152.12,17.63522028]
[1745547657593,11.06146273,152.16,152.12,6.57375755]
[1745547657811,11.06146273,152.13,152.1,0.03]
[1745547658010,11.06146273,152.13,152.1,6.60450378]
[1745547658525,11.06146273,152.13,152.1,0.03]
[1745547658526,11.06146273,152.11,152.1,0.03]
[1745547659592,11.2036243,152.11,152.1,0.03]
[1745547660498,11.06146273,152.11,152.1,0.03]
[1745547660795,11.06146273,152.12,152.1,0.03]
[1745547661324,11.06146273,152.11,152.1,0.03]
[1745547661697,11.06146273,152.12,152.1,0.03]
[1745547662229,13.92,152.13,152.1,0.03]
[1745547662399,13.92,152.13,152.1,11.09146273]
[1745547663428,13.92,152.13,152.1,17.73088415]
[1745547664026,31.62088415,152.13,152.1,0.03]
[1745547664205,17.70088415,152.12,152.1,0.03]
[1745547665493,31.62088415,152.13,152.1,0.03]
[1745547666004,13.92,152.13,152.1,17.73088415]
[1745547666902,13.92,152.13,152.1,0.03]
[1745547668417,31.62088415,152.13,152.1,0.03]
[1745547668996,17.70088415,152.11,152.1,0.03]
[1745547670240,17.84304572,152.11,152.1,0.03]
[1745547670518,50.42394572,152.11,152.1,0.03]
[1745547670906,26.0,152.08,152.05,0.03]
[1745547671102,25.63374572,152.06,152.05,0.03]
[1745547672303,47.6355553,152.06,152.05,0.03]
[1745547673731,25.63374572,152.06,152.05,0.03]
[1745547673923,26.0,152.06,152.05,0.03]
[1745547674131,13.92,152.06,152.05,0.03]
[1745547674307,13.92,152.06,152.05,17.73088415]
[1745547674501,13.92,152.09,152.05,17.73088415]
[1745547674729,13.92,152.09,152.07,17.70088415]
[1745547674905,205.12,152.11,152.08,17.70088415]
[1745547675225,205.12,152.11,152.09,17.70088415]
[1745547675402,13.92,152.13,152.09,17.70088415]
[1745547675722,17.70088415,152.17,152.12,17.70088415]
[1745547675936,13.92,152.16,152.14,17.70088415]
[1745547676227,13.92,152.19,152.16,6.57202944]
[1745547676540,13.92,152.19,152.12,16.43402299]
[1745547676541,17.70088415,152.17,152.12,16.43402299]
[1745547676705,17.70088415,152.17,152.13,17.70088415]
[1745547677029,17.70088415,152.16,152.12,17.70088415]
[1745547677238,17.70088415,152.17,152.13,17.70088415]
[1745547678048,17.70088415,152.14,152.06,17.95950925]
[1745547678212,17.70088415,152.11,152.07,24.27680313]
[1745547678725,17.70088415,152.12,152.07,24.27680313]
[1745547678930,17.70088415,152.12,152.08,17.70088415]
[1745547679632,31.62088415,152.13,152.07,6.57591898]
[1745547679811,31.62088415,152.13,152.08,17.70088415]
[1745547680148,13.92,152.13,152.1,17.70088415]
[1745547680433,13.92,152.13,152.1,24.27515407]
[1745547681232,13.92,152.13,152.11,17.70088415]
[1745547682133,13.92,152.13,152.09,17.70088415]
[1745547682336,43.70088415,152.1,152.05,0.03]
[1745547682510,17.70088415,152.09,152.05,0.03]
[1745547682906,17.70088415,152.09,152.05,17.73088415]
[1745547683124,108.84216157,152.12,152.05,17.73088415]
[1745547683125,17.70088415,152.11,152.07,17.70088415]
[1745547683316,126.40088415,152.12,152.07,17.70088415]
[1745547684129,31.62088415,152.13,152.08,17.70088415]
[1745547684428,82.7,152.15,152.1,17.70088415]
[1745547684629,13.92,152.16,152.12,17.70088415]
[1745547684812,13.92,152.16,152.13,17.70088415]
[1745547685131,13.92,152.16,152.12,17.70088415]
[1745547685532,100.40088415,152.18,152.14,17.70088415]
[1745547685830,13.92,152.17,152.14,17.70088415]
[1745547686133,31.62088415,152.17,152.13,17.70088415]
[1745547686308,13.92,152.17,152.13,17.70088415]
[1745547686507,31.62088415,152.17,152.11,6.57388024]
[1745547686708,31.62088415,152.17,152.12,17.70088415]
[1745547686909,17.70088415,152.15,152.11,17.70088415]
[1745547687206,17.70088415,152.15,152.1,24.27548004]
[1745547687405,17.70088415,152.15,152.1,17.70088415]
[1745547688235,17.70088415,152.14,152.1,17.70088415]
[1745547689835,100.40088415,152.16,152.11,17.70088415]
[1745547690045,17.70088415,152.16,152.11,17.70088415]
[1745547690638,17.70088415,152.16,152.12,17.70088415]
[1745547690823,17.70088415,152.16,152.12,24.27434703]
[1745547691535,17.70088415,152.15,152.11,24.27497543]
[1745547692738,17.70088415,152.15,152.1,24.27547372]
[1745547693423,17.70088415,152.14,152.1,24.27547372]
[1745547695441,17.70088415,152.15,152.11,17.70088415]
[1745547695620,17.70088415,152.16,152.12,17.70088415]
[1745547695819,17.70088415,152.16,152.1,6.57458957]
[1745547696138,17.70088415,152.16,152.11,17.70088415]
[1745547696636,17.70088415,152.15,152.11,17.70088415]
[1745547697132,17.70088415,152.15,152.1,24.27547372]
[1745547697334,17.70088415,152.14,152.1,24.27547372]
[1745547697533,17.70088415,152.14,152.1,6.57458957]
[1745547697839,17.70088415,152.15,152.1,24.27547372]
[1745547698658,17.70088415,152.16,152.11,17.70088415]
[1745547699921,17.70088415,152.16,152.11,24.27498793]
[1745547700547,17.70088415,152.13,152.09,25.91696652]
[1745547700735,13.92,152.17,152.1,17.70088415]
[1745547700939,17.70088415,152.15,152.1,17.70088415]
[1745547702049,17.70088415,152.15,152.11,6.57418973]
[1745547703232,17.70088415,152.14,152.11,6.57418973]
[1745547703443,17.70088415,152.14,152.1,6.57451081]
[1745547703746,17.70088415,152.13,152.08,17.70088415]
[1745547703953,17.70088415,152.14,152.09,24.27585026]
[1745547704345,17.70088415,152.13,152.09,24.27585026]
[1745547705533,17.70088415,152.14,152.1,17.70088415]
[1745547705736,17.70088415,152.14,152.09,24.27585026]
[1745547705937,17.70088415,152.13,152.09,6.57496611]
[1745547707536,17.70088415,152.12,152.09,6.57496611]
[1745547708053,17.70088415,152.14,152.09,24.27585026]
[1745547708354,17.70088415,152.15,152.11,17.70088415]
[1745547708659,17.70088415,152.15,152.1,17.70088415]
[1745547709170,17.70088415,152.15,152.11,6.57418973]
[1745547709655,17.70088415,152.12,152.07,17.70088415]
[1745547709853,17.70088415,152.12,152.07,24.27680313]
[1745547710555,17.70088415,152.12,152.08,17.70088415]
[1745547710755,17.70088415,152.13,152.08,17.70088415]
[1745547711267,17.70088415,152.13,152.09,17.70088415]
[1745547712061,17.70088415,152.14,152.09,17.70088415]
[1745547712359,17.70088415,152.13,152.08,17.70088415]
[1745547713963,17.70088415,152.13,152.09,6.57505424]
[1745547715275,108.7,152.16,152.09,6.57505424]
[1745547715452,17.70088415,152.15,152.11,17.70088415]
[1745547715770,17.70088415,152.15,152.1,17.70088415]
[1745547716471,17.70088415,152.15,152.11,6.57418973]
[1745547716965,108.7,152.16,152.11,6.57418973]
[1745547717168,100.40088415,152.16,152.12,17.70088415]
[1745547717374,100.40088415,152.16,152.11,24.27507388]
[1745547717543,17.70088415,152.15,152.11,24.27507388]
[1745547717738,82.7,152.16,152.07,6.57591898]
[1745547717944,17.70088415,152.15,152.1,17.70088415]
[1745547718465,17.70088415,152.15,152.11,6.57418973]
[1745547718668,100.40088415,152.16,152.11,24.27507388]
[1745547719877,82.7,152.16,152.12,17.70088415]
[1745547720086,100.40088415,152.16,152.11,24.27507388]
[1745547720562,17.70088415,152.15,152.11,24.27507388]
[1745547722360,100.40088415,152.16,152.11,24.27507388]
[1745547722561,82.7,152.16,152.12,17.70088415]
[1745547722867,19.9385,152.21,152.15,17.70088415]
[1745547723058,19.9385,152.21,152.17,17.70088415]
[1745547723255,30.99132773,152.21,152.16,11.05282773]
[1745547723679,30.99132773,152.21,152.17,11.05282773]
[1745547724190,30.99132773,152.21,152.18,6.57116572]
[1745547724369,13.68,152.21,152.18,17.62399345]
[1745547724570,298.85282773,152.22,152.17,17.62431108]
[1745547724768,11.05282773,152.21,152.17,17.62431108]
[1745547725276,17.6837836,152.21,152.17,24.25526695]
[1745547725977,287.8,152.22,152.12,6.57365487]
[1745547725978,17.6837836,152.18,152.12,6.57365487]
[1745547726197,17.6837836,152.16,152.12,6.57365487]
[1745547726380,17.6837836,152.17,152.12,24.25743847]
[1745547726582,108.7,152.19,152.14,17.6837836]
[1745547726794,82.7,152.19,152.16,17.6837836]
[1745547726995,17.6837836,152.2,152.15,17.6837836]
[1745547727378,17.6837836,152.19,152.15,17.6837836]
[1745547728269,17.6837836,152.2,152.15,24.25585568]
[1745547728470,17.6837836,152.21,152.17,17.6837836]
[1745547729596,17.6837836,152.21,152.15,6.57207208]
[1745547729888,287.8,152.22,152.18,17.6837836]
[1745547730092,13.743,152.23,152.19,17.6837836]
[1745547730387,13.743,152.23,152.2,24.25391971]
[1745547730610,0.063,152.23,152.22,17.6837836]
[1745547732506,17.7467836,152.23,152.19,17.6837836]
[1745547732692,17.7467836,152.23,152.19,24.25451755]
[1745547732893,0.063,152.23,152.2,17.6837836]
[1745547733098,0.063,152.23,152.22,17.6837836]
[1745547733997,0.063,152.23,152.22,36.33343246]
[1745547734395,0.063,152.23,152.22,42.90287142]
[1745547734704,0.063,152.23,152.22,6.56943896]
[1745547734882,0.063,152.23,152.22,24.25322256]
[1745547735487,0.063,152.23,152.21,24.25353487]
[1745547736090,0.063,152.23,152.2,24.25406233]
[1745547737019,0.063,152.23,152.22,17.6837836]
[1745547738617,0.063,152.23,152.22,24.25322256]
[1745547740008,0.063,152.23,152.21,6.56982296]
[1745547740604,0.063,152.23,152.2,6.57030223]
[1745547742241,0.063,152.23,152.21,17.6837836]
[1745547742439,0.063,152.23,152.22,17.6837836]
[1745547742621,0.063,152.23,152.22,18.9973173]
[1745547742827,0.063,152.23,152.22,24.25322256]
[1745547745727,0.063,152.23,152.21,25.21951943]
[1745547745931,0.063,152.23,152.22,17.6837836]
[1745547748239,0.063,152.23,152.22,24.25322256]
[1745547749437,0.063,152.23,152.22,17.61246091]
[1745547750239,0.063,152.23,152.2,6.57030223]
[1745547750423,0.063,152.23,152.21,11.04302195]
[1745547751261,0.063,152.23,152.22,6.56943896]
[1745547751631,0.063,152.23,152.22,17.61246091]
[1745547754940,0.063,152.23,152.21,11.04302195]
[1745547755545,0.063,152.23,152.21,17.61273183]
[1745547755934,0.063,152.23,152.2,17.61320587]
[1745547757722,0.063,152.23,152.21,11.04302195]
[1745547758249,0.063,152.23,152.22,11.04302195]
[1745547758452,0.063,152.23,152.21,11.04302195]
[1745547758950,0.063,152.23,152.21,17.61263913]
[1745547759122,0.063,152.23,152.21,11.04302195]
[1745547759643,0.063,152.23,152.21,17.61287409]
[1745547760330,0.063,152.23,152.2,17.6131861]
[1745547760724,0.063,152.23,152.19,6.57058972]
[1745547760927,11.04302195,152.21,152.16,17.61505139]
[1745547761845,11.04302195,152.2,152.15,17.6153631]
[1745547762155,11.04302195,152.22,152.18,11.04302195]
[1745547762337,119.80602195,152.23,152.18,11.04302195]
[1745547762645,11.04302195,152.22,152.17,11.04302195]
[1745547762853,11.04302195,152.21,152.17,11.04302195]
[1745547763240,11.04302195,152.21,152.16,17.61465585]
[1745547764363,11.04302195,152.21,152.16,11.04302195]
[1745547764667,11.04302195,152.18,152.14,11.04302195]
[1745547765558,11.04302195,152.19,152.14,11.04302195]
[1745547766155,11.04302195,152.19,152.13,6.57332544]
[1745547766338,11.04302195,152.19,152.14,11.04302195]
[1745547766657,11.04302195,152.18,152.14,17.61588451]
[1745547767445,11.04302195,152.18,152.07,6.57591898]
[1745547767446,11.04302195,152.15,152.07,6.57591898]
[1745547767634,11.04302195,152.14,152.09,11.04302195]
[1745547767961,11.04302195,152.14,152.1,11.04302195]
[1745547768457,11.04302195,152.14,152.1,17.6174469]
[1745547768759,37.04302195,152.15,152.1,17.6174469]
[1745547768977,37.04302195,152.15,152.11,11.04302195]
[1745547769163,37.04302195,152.15,152.1,17.6174469]
[1745547769857,37.04302195,152.15,152.11,11.04302195]
[1745547770479,37.04302195,152.15,152.1,17.6174469]
[1745547772384,11.04302195,152.14,152.1,11.04302195]
[1745547773884,11.04302195,152.14,152.09,11.04302195]
[1745547774381,11.04302195,152.14,152.1,6.57462195]
[1745547774578,11.04302195,152.13,152.09,6.57491258]
[1745547775291,11.04302195,152.12,152.08,6.57536678]
[1745547775456,11.04302195,152.11,152.06,17.61937339]
[1745547775657,11.04302195,152.11,152.07,11.04302195]
[1745547776058,11.04302195,152.12,152.07,11.04302195]
[1745547776486,11.04302195,152.11,152.07,6.57559671]
[1745547777186,11.04302195,152.11,152.07,17.61861866]
[1745547777681,11.04302195,152.12,152.07,17.61861866]
[1745547777858,11.04302195,152.11,152.07,17.61861866]
[1745547778274,11.04302195,152.11,152.07,6.57559671]
[1745547778999,11.04302195,152.09,152.06,6.57622267]
[1745547780062,11.04302195,152.08,152.06,6.57622267]
[1745547780594,11.04302195,152.08,152.05,0.03]
[1745547780800,11.04302195,152.07,152.05,0.03]
[1745547781085,11.04302195,152.06,152.05,0.03]
[1745547781262,11.04302195,152.07,152.05,0.03]
[1745547783661,133.28302195,152.09,152.05,0.03]
[1745547785206,96.24,152.09,152.06,11.04302195]
[1745547785496,96.24,152.09,152.05,0.03]
[1745547785677,11.04302195,152.08,152.05,0.03]
[1745547786479,96.24,152.09,152.05,0.03]
[1745547786668,107.28302195,152.09,152.05,0.03]
[1745547786870,96.24,152.09,152.05,0.03]
[1745547787366,107.28302195,152.09,152.05,0.03]
[1745547788307,96.24,152.09,152.08,11.04302195]
[1745547788490,82.7,152.09,152.08,11.04302195]
[1745547789469,82.7,152.09,152.07,11.04302195]
[1745547789672,82.7,152.09,152.05,11.07302195]
[1745547790192,11.04302195,152.08,152.05,0.03]
[1745547791189,24.60302195,152.08,152.05,0.03]
[1745547791395,13.56,152.08,152.05,6.60660966]
[1745547792193,13.56,152.08,152.05,0.03]
[1745547792393,24.60302195,152.08,152.05,0.03]
[1745547794674,13.56,152.08,152.05,0.03]
[1745547794872,13.56,152.08,152.05,11.07302195]
[1745547795573,13.56,152.08,152.05,17.6495577]
[1745547796174,11.04302195,152.07,152.05,0.03]
[1745547796376,11.18518352,152.06,152.05,0.03]
[1745547798000,37.50773238,152.06,152.05,0.03]
[1745547799212,33.81506157,152.06,152.05,0.03]
[1745547799375,44.85808352,152.06,152.05,0.03]
[1745547801489,26.0,152.06,152.05,0.03]
[1745547801881,39.56,152.08,152.05,11.07302195]
[1745547802305,13.56,152.08,152.05,0.03]
[1745547802507,39.56,152.08,152.05,0.03]
[1745547804686,50.60302195,152.08,152.05,0.03]
[1745547805514,11.04302195,152.07,152.05,0.03]
[1745547806031,50.60302195,152.08,152.05,0.03]
[1745547806398,11.18518352,152.06,152.05,0.03]
[1745547806600,29.83483238,152.06,152.05,0.03]
[1745547809138,55.83483238,152.06,152.05,0.03]
[1745547811341,29.83483238,152.06,152.05,0.03]
[1745547814509,11.18518352,152.06,152.05,0.03]
[1745547815705,29.83483238,152.06,152.05,0.03]
[1745547816241,44.79181043,152.04,152.03,0.03]
[1745547816527,55.83483238,152.04,152.03,0.03]
[1745547817928,37.18518352,152.04,152.03,0.03]
[1745547819026,55.83483238,152.04,152.03,0.03]
[1745547826118,29.83483238,152.04,152.03,0.03]
[1745547826431,29.83483238,152.04,151.98,0.03]
[1745547826432,26.0,152.01,151.98,0.03]
[1745547826730,11.18518352,151.99,151.98,0.03]
[1745547826931,29.83483238,151.99,151.98,0.03]